[Event "30th Abu Dhabi Festival A-Open 2024"]
[Site "Abu Dhabi"]
[Date "2024.08.19"]
[Round "4.4"]
[White "Wen, Gehua"]
[Black "Dere Pushkar"]
[Result "0-1"]
[ECO "D10"]
[WhiteElo "2119"]
[BlackElo "2217"]
[Annotator "RC"]
[PlyCount "158"]
[EventDate "2024.08.15"]
[EventType "swiss"]
[EventCountry "UAE"]
[SourceTitle "playchess.com"]
[Source "ChessBase"]
[SourceQuality "1"]
[TimeControl "5400+30"]

1. d4 {[%emt 0:00:05]} d5 {[%emt 0:00:08]} 2. c4 {[%emt 0:00:06]} c6 {[%emt 0:00:11]} 3. cxd5 {[%emt 0:00:05]} cxd5 {[%emt 0:00:09]} 4. Nc3 {[%emt 0:00:03]} Nf6 {[%emt 0:00:13]} 5. Bf4 {[%emt 0:00:07]} Nc6 {[%emt 0:00:23]} 6. e3 {[%emt 0:00:07]} e6 {[%emt 0:00:18]} 7. Bd3 {[%emt 0:00:18]} Bd6 {[%emt 0:00:26]} 8. Bxd6 {[%emt 0:00:47]} Qxd6 {[%emt 0:00:08]} 9. f4 {[%emt 0:00:08]} a6 {[%emt 0:10:29]} 10. Nf3 {[%emt 0:00:59]} b5 {[%emt 0:01:43]} 11. O-O {[%emt 0:07:22]} Bb7 {[%emt 0:01:26]} 12. Ne5 {[%emt 0:01:50]} Rc8 {[%emt 0:02:34]} 13. Rc1 {[%emt 0:01:23]} Ne7 {[%emt 0:13:01]} 14. Qf3 {[%emt 0:14:44]} Qb4 {[%emt 0:13:09]} 15. Rb1 {[%emt 0:17:07]} Nf5 {[%emt 0:15:27]} 16. Bxf5 {[%emt 0:17:38]} exf5 {[%emt 0:00:06]} 17. Qh3 {[%emt 0:00:05]} g6 {[%emt 0:04:06]} 18. Qh6 {[%emt 0:00:13]} Qf8 {[%emt 0:07:33]} 19. Qxf8+ {[%emt 0:00:05]} Rxf8 {[%emt 0:00:12]} 20. Nd3 {[%emt 0:01:56]} Nd7 {[%emt 0:01:22]} 21. Rfc1 {[%emt 0:02:20]} Ke7 {[%emt 0:00:50]} 22. a4 {[%emt 0:06:39]} Nb6 {[%emt 0:03:04]} 23. Nc5 {[%emt 0:05:48]} Bc6 {[%emt 0:00:37]} 24. a5 {[%emt 0:02:47]} Nc4 {[%emt 0:00:43]} 25. b3 {[%emt 0:01:22]} Nxa5 {[%emt 0:02:20]} 26. Ra1 {[%emt 0:00:02]} Nb7 {[%emt 0:00:33]} 27. Rxa6 {[%emt 0:02:41]} Nd6 {[%emt 0:07:47]} 28. Na2 {[%emt 0:03:39]} Rfd8 {[%emt 0:06:40]} 29. Nb4 {[%emt 0:00:46]} Ba8 {[%emt 0:00:06]} 30. Ra7+ {[%emt 0:02:35]} Ke8 {[%emt 0:01:12]} 31. Rca1 {[%emt 0:00:26]} Ne4 {[%emt 0:01:12]} 32. Nba6 {[%emt 0:05:45]} Nxc5 {[%emt 0:00:28]} 33. Nxc5 {[%emt 0:00:26]} Bc6 {[%emt 0:00:51]} 34. R1a6 {[%emt 0:00:21]} Kf8 {[%emt 0:00:25]} 35. Rb6 {[%emt 0:00:18]} Be8 {[%emt 0:00:44]} 36. Kf2 {[%emt 0:01:06]} Ra8 {[%emt 0:01:30]} 37. Rba6 {[%emt 0:01:50]} Rab8 {[%emt 0:02:19]} 38. b4 {[%emt 0:00:13]} Rbc8 {[%emt 0:00:14]} 39. h3 {[%emt 0:00:32]} Rc6 {[%emt 0:00:54]} 40. Ra5 {[%emt 0:00:44]} Rcc8 {[%emt 0:00:21]} 41. g4 {[%emt 0:00:16]} fxg4 {[%emt 0:00:54]} 42. hxg4 {[%emt 0:00:01]} h6 {[%emt 0:00:48]} 43. Kg3 {[%emt 0:00:22]} Rd6 {[%emt 0:00:12]} 44. Rb7 {[%emt 0:00:40]} Rdd8 {[%emt 0:01:14]} 45. f5 {[%emt 0:01:06]} Rd6 {[%emt 0:01:40]} 46. Kf4 {[%emt 0:00:33]} g5+ {[%emt 0:00:05]} 47. Kf3 {[%emt 0:00:39]} Rcd8 {[%emt 0:01:19]} 48. Raa7 {[%emt 0:00:14]} Rc8 {[%emt 0:00:43]} 49. Nd3 {[%emt 0:05:41]} Rc2 {[%emt 0:01:34]} 50. Ne5 {[%emt 0:00:00]} Rh2 {[%emt 0:00:19]} 51. Nxf7 {[%emt 0:00:00]} Rc6 {[%emt 0:00:05]} 52. Kg3 {[%emt 0:00:46]} Rcc2 {[%emt 0:00:03]} 53. Ne5 {[%emt 0:00:08]} h5 {[%emt 0:00:21]} 54. Rf7+ {[%emt 0:00:39]} Bxf7 {[%emt 0:00:20]} 55. Rxf7+ {[%emt 0:00:01]} Ke8 {[%emt 0:00:49]} 56. gxh5 {[%emt 0:00:03]} Rhg2+ {[%emt 0:01:15]} 57. Kh3 {[%emt 0:00:06]} Rge2 {[%emt 0:00:22]} 58. Kg4 {[%emt 0:00:29]} Rg2+ {[%emt 0:00:17]} 59. Kh3 {[%emt 0:00:04]} Rge2 {[%emt 0:00:02]} 60. Kg4 {[%emt 0:00:05]} Rxe3 {[%emt 0:00:04]} 61. Kxg5 {[%emt 0:00:25]} Rxe5 {[%emt 0:00:08]} 62. Rb7 {[%emt 0:00:32]} Re7 {[%emt 0:01:49]} 63. Rxb5 {[%emt 0:00:24]} Rg2+ {[%emt 0:00:03]} 64. Kf6 {[%emt 0:00:57]} Rf7+ {[%emt 0:00:02]} 65. Ke6 {[%emt 0:00:05]} Re2+ {[%emt 0:00:07]} 66. Kd6 {[%emt 0:00:15]} Rf6+ {[%emt 0:00:18]} 67. Kc7 {[%emt 0:02:19]} Rxf5 {[%emt 0:00:07]} 68. h6 {[%emt 0:00:50]} Re7+ {[%emt 0:00:45]} 69. Kc6 {[%emt 0:00:53]} Rf6+ {[%emt 0:00:14]} 70. Kxd5 {[%emt 0:00:04]} Rf5+ {[%emt 0:00:35]} 71. Kc4 {[%emt 0:00:02]} Rxb5 {[%emt 0:00:06]} 72. Kxb5 {[%emt 0:02:23]} Rh7 {[%emt 0:00:46]} 73. Kc6 {[%emt 0:00:00]} Rxh6+ {[%emt 0:00:18]} 74. Kc7 {[%emt 0:00:00]} Rh4 {[%emt 0:00:20]} 75. b5 {[%emt 0:00:00]} Rxd4 {[%emt 0:00:12]} 76. b6 {[%emt 0:00:00]} Rc4+ {[%emt 0:00:05]} 77. Kb8 {[%emt 0:00:00]} Kd7 {[%emt 0:00:25]} 78. b7 {[%emt 0:00:00]} Rb4 {[%emt 0:00:15]} 79. Ka7 {[%emt 0:00:11]} Kc7 {[%emt 0:00:07]} 0-1

[Event "30th Abu Dhabi Festival A-Open 2024"]
[Site "Abu Dhabi"]
[Date "2024.08.19"]
[Round "4.5"]
[White "Manukyan, Sargis A."]
[Black "Shen, Fuyan"]
[Result "1/2-1/2"]
[ECO "D11"]
[WhiteElo "2211"]
[BlackElo "1826"]
[Annotator "RC"]
[PlyCount "110"]
[EventDate "2024.08.15"]
[EventType "swiss"]
[EventCountry "UAE"]
[SourceTitle "playchess.com"]
[Source "ChessBase"]
[SourceQuality "1"]
[TimeControl "5400+30"]

1. d4 {[%emt 0:00:07]} d5 {[%emt 0:00:05]} 2. c4 {[%emt 0:00:07]} c6 {[%emt 0:00:05]} 3. Nc3 {[%emt 0:00:25]} dxc4 {[%emt 0:00:07]} 4. Nf3 {[%emt 0:01:01]} b5 {[%emt 0:00:36]} 5. a4 {[%emt 0:00:44]} b4 {[%emt 0:01:27]} 6. Ne4 {[%emt 0:00:04]} Nf6 {[%emt 0:02:45]} 7. Ng3 {[%emt 0:01:24]} e6 {[%emt 0:09:26]} 8. e4 {[%emt 0:00:08]} Ba6 {[%emt 0:00:54]} 9. Bg5 {[%emt 0:02:09]} Qa5 {[%emt 0:04:31]} 10. Qc1 {[%emt 0:05:00]} c3 {[%emt 0:01:32]} 11. bxc3 {[%emt 0:03:00]} Bxf1 {[%emt 0:08:25]} 12. Kxf1 {[%emt 0:04:24]} bxc3 {[%emt 0:00:23]} 13. Bxf6 {[%emt 0:00:36]} gxf6 {[%emt 0:00:12]} 14. Ne2 {[%emt 0:03:35]} Bb4 {[%emt 0:01:03]} 15. Qc2 {[%emt 0:01:33]} Nd7 {[%emt 0:10:55]} 16. Ne1 {[%emt 0:02:36]} c5 {[%emt 0:04:36]} 17. d5 {[%emt 0:01:45]} Nb6 {[%emt 0:04:14]} 18. dxe6 {[%emt 0:01:35]} fxe6 {[%emt 0:00:09]} 19. h4 {[%emt 0:08:27]} O-O-O {[%emt 0:01:25]} 20. Nd3 {[%emt 0:04:29]} Rd7 {[%emt 0:02:56]} 21. Rh3 {[%emt 0:02:16]} Rhd8 {[%emt 0:00:45]} 22. Kg1 {[%emt 0:05:56]} Kb8 {[%emt 0:02:50]} 23. Nec1 {[%emt 0:02:21]} Qa6 {[%emt 0:06:43]} 24. a5 {[%emt 0:07:00]} Nc4 {[%emt 0:03:45]} 25. Nb3 {[%emt 0:04:49]} Rc7 {[%emt 0:10:16]} 26. Ra4 {[%emt 0:11:56]} Qb5 {[%emt 0:01:02]} 27. Ndxc5 {[%emt 0:10:43]} Bxc5 {[%emt 0:01:04]} 28. Nxc5 {[%emt 0:00:05]} Rxc5 {[%emt 0:01:33]} 29. Rxc3 {[%emt 0:01:38]} Rd2 {[%emt 0:00:11]} 30. Qb3 {[%emt 0:00:09]} Qxb3 {[%emt 0:00:26]} 31. Rxb3+ {[%emt 0:00:04]} Kc7 {[%emt 0:00:13]} 32. Rf3 {[%emt 0:02:19]} Ne5 {[%emt 0:01:24]} 33. Rg3 {[%emt 0:02:38]} h5 {[%emt 0:02:39]} 34. f3 {[%emt 0:01:26]} Rcc2 {[%emt 0:01:30]} 35. a6 {[%emt 0:01:05]} Kb6 {[%emt 0:00:38]} 36. Ra1 {[%emt 0:01:14]} Nd3 {[%emt 0:01:33]} 37. Kh1 {[%emt 0:02:25]} Nf4 {[%emt 0:00:33]} 38. e5 {[%emt 0:00:31]} fxe5 {[%emt 0:00:35]} 39. Rg7 {[%emt 0:00:31]} Rxg2 {[%emt 0:00:19]} 40. Rb1+ {[%emt 0:00:38]} Kxa6 {[%emt 0:00:32]} 41. Rxa7+ {[%emt 0:00:20]} Kxa7 {[%emt 0:00:43]} 42. Rb7+ {[%emt 0:00:05]} Ka6 {[%emt 0:01:14]} 43. Rb6+ {[%emt 0:00:05]} Ka5 {[%emt 0:00:04]} 44. Rb5+ {[%emt 0:00:05]} Ka4 {[%emt 0:00:04]} 45. Rb4+ {[%emt 0:00:04]} Ka3 {[%emt 0:00:03]} 46. Rb3+ {[%emt 0:00:05]} Ka2 {[%emt 0:00:04]} 47. Rb2+ {[%emt 0:00:04]} Ka1 {[%emt 0:00:15]} 48. Rb1+ {[%emt 0:00:05]} Ka2 {[%emt 0:00:08]} 49. Rb2+ {[%emt 0:00:04]} Ka3 {[%emt 0:00:07]} 50. Rb3+ {[%emt 0:00:04]} Ka4 {[%emt 0:00:02]} 51. Rb4+ {[%emt 0:00:05]} Ka5 {[%emt 0:00:03]} 52. Rb5+ {[%emt 0:00:05]} Ka6 {[%emt 0:00:02]} 53. Rb6+ {[%emt 0:00:07]} Ka7 {[%emt 0:00:03]} 54. Rb7+ {[%emt 0:00:04]} Ka8 {[%emt 0:00:03]} 55. Rb8+ {[%emt 0:00:06]} Kxb8 {[%emt 0:00:03]} 1/2-1/2

[Event "30th Abu Dhabi Festival A-Open 2024"]
[Site "Abu Dhabi"]
[Date "2024.08.19"]
[Round "4.6"]
[White "Barretto, Franz"]
[Black "Abdullayev, Elshad"]
[Result "1/2-1/2"]
[ECO "D11"]
[WhiteElo "2101"]
[BlackElo "2205"]
[Annotator "RC"]
[PlyCount "75"]
[EventDate "2024.08.15"]
[EventType "swiss"]
[EventCountry "UAE"]
[SourceTitle "playchess.com"]
[Source "ChessBase"]
[SourceQuality "1"]
[TimeControl "5400+30"]

1. d4 {[%emt 0:00:03]} Nf6 {[%emt 0:02:18]} 2. g3 {[%emt 0:00:32]} d5 {[%emt 0:04:14]} 3. Bg2 {[%emt 0:01:11]} Bf5 {[%emt 0:09:56]} 4. Nf3 {[%emt 0:00:52]} e6 {[%emt 0:00:06]} 5. O-O {[%emt 0:00:16]} h6 {[%emt 0:02:29]} 6. c4 {[%emt 0:00:30]} c6 {[%emt 0:01:18]} 7. Nc3 {[%emt 0:00:48]} Be7 {[%emt 0:01:18]} 8. Nd2 {[%emt 0:06:30]} Nbd7 {[%emt 0:08:18]} 9. e4 {[%emt 0:04:05]} dxe4 {[%emt 0:01:40]} 10. Ndxe4 {[%emt 0:00:11]} O-O {[%emt 0:08:59]} 11. Be3 {[%emt 0:09:58]} Nxe4 {[%emt 0:20:18]} 12. Nxe4 {[%emt 0:00:58]} Nf6 {[%emt 0:00:56]} 13. Nxf6+ {[%emt 0:06:45]} Bxf6 {[%emt 0:00:06]} 14. Qb3 {[%emt 0:00:34]} Bxd4 {[%emt 0:29:21]} 15. Rfd1 {[%emt 0:04:58]} c5 {[%emt 0:03:44]} 16. Qxb7 {[%emt 0:07:34]} Qf6 {[%emt 0:00:02]} 17. Bxd4 {[%emt 0:02:21]} cxd4 {[%emt 0:00:01]} 18. Qf3 {[%emt 0:00:02]} Rab8 {[%emt 0:03:51]} 19. g4 {[%emt 0:02:12]} Bg6 {[%emt 0:00:04]} 20. Qxf6 {[%emt 0:01:53]} gxf6 {[%emt 0:00:01]} 21. Rxd4 {[%emt 0:00:24]} Rb7 {[%emt 0:02:00]} 22. b4 Rxb4 {[%emt 0:00:00]} 23. c5 {[%emt 0:08:29]} Rb2 {[%emt 0:00:00]} 24. c6 {[%emt 0:06:05]} Rc2 {[%emt 0:00:00]} 25. Rd7 {[%emt 0:09:38]} e5 {[%emt 0:00:00]} 26. Rxa7 {[%emt 0:01:25]} e4 {[%emt 0:00:00]} 27. Re7 Rxc6 {[%emt 0:01:27]} 28. Rd7 {[%emt 0:05:19]} Rfc8 {[%emt 0:01:29]} 29. Rd5 {[%emt 0:21:27]} Ra6 30. Rd4 {[%emt 0:00:00]} Ra3 {[%emt 0:00:31]} 31. Rd2 {[%emt 0:00:00]} f5 {[%emt 0:00:52]} 32. gxf5 {[%emt 0:00:00]} Bxf5 {[%emt 0:00:02]} 33. Re2 {[%emt 0:02:00]} Rc4 {[%emt 0:00:28]} 34. Re3 {[%emt 0:00:00]} Rca4 {[%emt 0:00:58]} 35. Rxa3 {[%emt 0:00:00]} Rxa3 {[%emt 0:00:01]} 36. Re1 {[%emt 0:00:00]} Ra4 {[%emt 0:00:55]} 37. Re3 {[%emt 0:00:00]} Rxa2 {[%emt 0:00:45]} 38. Bxe4 {[%emt 0:00:00]} 1/2-1/2

[Event "30th Abu Dhabi Festival A-Open 2024"]
[Site "Abu Dhabi"]
[Date "2024.08.19"]
[Round "4.7"]
[White "Samimi, Armin"]
[Black "Aditya Varun Gampa"]
[Result "1/2-1/2"]
[ECO "A13"]
[WhiteElo "2012"]
[BlackElo "2261"]
[Annotator "RC"]
[PlyCount "33"]
[EventDate "2024.08.15"]
[EventType "swiss"]
[EventCountry "UAE"]
[SourceTitle "playchess.com"]
[Source "ChessBase"]
[SourceQuality "1"]
[TimeControl "5400+30"]

1. c4 {[%emt 0:00:03]} e6 {[%emt 0:06:27]} 2. g3 {[%emt 0:00:16]} d5 {[%emt 0:00:17]} 3. Bg2 {[%emt 0:00:27]} Nf6 {[%emt 0:00:05]} 4. Nf3 {[%emt 0:00:15]} dxc4 {[%emt 0:01:04]} 5. Qa4+ {[%emt 0:00:27]} Nbd7 {[%emt 0:02:39]} 6. Qxc4 {[%emt 0:00:29]} a6 {[%emt 0:01:05]} 7. Qb3 {[%emt 0:01:46]} Rb8 {[%emt 0:07:26]} 8. a4 {[%emt 0:08:33]} c5 {[%emt 0:02:46]} 9. d3 {[%emt 0:02:34]} Bd6 {[%emt 0:03:42]} 10. a5 {[%emt 0:10:54]} O-O {[%emt 0:07:03]} 11. Nbd2 {[%emt 0:01:29]} b5 {[%emt 0:01:19]} 12. axb6 {[%emt 0:07:09]} Nxb6 {[%emt 0:00:18]} 13. O-O {[%emt 0:01:54]} Bb7 {[%emt 0:01:58]} 14. Nc4 {[%emt 0:08:40]} Nxc4 {[%emt 0:05:15]} 15. Qxc4 {[%emt 0:01:01]} Bd5 {[%emt 0:01:40]} 16. Qc3 {[%emt 0:02:08]} Qb6 {[%emt 0:03:07]} 17. Qa5 {[%emt 0:06:12]} 1/2-1/2

[Event "30th Abu Dhabi Festival A-Open 2024"]
[Site "Abu Dhabi"]
[Date "2024.08.19"]
[Round "4.8"]
[White "Andreasyan, Edgar"]
[Black "Hamidov, Allahverdi"]
[Result "0-1"]
[ECO "D37"]
[WhiteElo "2027"]
[BlackElo "2253"]
[Annotator "RC"]
[PlyCount "134"]
[EventDate "2024.08.15"]
[EventType "swiss"]
[EventCountry "UAE"]
[SourceTitle "playchess.com"]
[Source "ChessBase"]
[SourceQuality "1"]
[TimeControl "5400+30"]

1. d4 {[%emt 0:00:08]} d5 {[%emt 0:00:24]} 2. c4 {[%emt 0:00:06]} e6 {[%emt 0:00:31]} 3. Nc3 {[%emt 0:00:43]} Nf6 {[%emt 0:00:13]} 4. Nf3 {[%emt 0:00:13]} Be7 {[%emt 0:00:33]} 5. Bf4 {[%emt 0:00:09]} O-O {[%emt 0:00:29]} 6. e3 {[%emt 0:01:34]} c5 {[%emt 0:00:01]} 7. dxc5 {[%emt 0:01:07]} Bxc5 {[%emt 0:00:16]} 8. cxd5 {[%emt 0:03:16]} Nxd5 {[%emt 0:00:46]} 9. Nxd5 {[%emt 0:00:19]} exd5 {[%emt 0:00:06]} 10. Bd3 {[%emt 0:00:23]} Bb6 {[%emt 0:00:26]} 11. O-O {[%emt 0:06:43]} Nc6 {[%emt 0:03:22]} 12. a3 {[%emt 0:11:16]} Qf6 {[%emt 0:06:51]} 13. b4 {[%emt 0:09:54]} h6 {[%emt 0:04:09]} 14. b5 {[%emt 0:04:05]} Nd4 {[%emt 0:00:38]} 15. Nxd4 {[%emt 0:18:55]} Bxd4 {[%emt 0:00:32]} 16. Ra2 {[%emt 0:04:07]} Be5 {[%emt 0:03:31]} 17. Bxe5 {[%emt 0:01:40]} Qxe5 {[%emt 0:00:03]} 18. Bb1 {[%emt 0:05:21]} Be6 {[%emt 0:03:18]} 19. Rd2 {[%emt 0:02:22]} Rfc8 {[%emt 0:09:00]} 20. Rd4 {[%emt 0:03:01]} Rc3 {[%emt 0:06:14]} 21. a4 {[%emt 0:00:15]} Rc4 {[%emt 0:03:22]} 22. Qd3 {[%emt 0:06:01]} g6 {[%emt 0:01:10]} 23. f4 {[%emt 0:02:30]} Rxd4 {[%emt 0:02:30]} 24. exd4 {[%emt 0:00:06]} Qf6 {[%emt 0:01:27]} 25. f5 {[%emt 0:01:44]} gxf5 {[%emt 0:02:31]} 26. Qd2 {[%emt 0:08:42]} Rc8 {[%emt 0:01:40]} 27. Bxf5 {[%emt 0:06:32]} Bxf5 {[%emt 0:00:24]} 28. Qf4 {[%emt 0:00:14]} Rc4 {[%emt 0:01:07]} 29. Qxf5 {[%emt 0:00:02]} Qxf5 {[%emt 0:00:07]} 30. Rxf5 {[%emt 0:00:03]} Rxd4 {[%emt 0:00:05]} 31. b6 {[%emt 0:03:12]} axb6 {[%emt 0:09:54]} 32. Rf6 {[%emt 0:00:04]} Kg7 {[%emt 0:00:27]} 33. Rxb6 {[%emt 0:00:05]} Rxa4 {[%emt 0:00:03]} 34. Rxb7 {[%emt 0:00:26]} Ra2 {[%emt 0:01:09]} 35. Rd7 {[%emt 0:00:20]} Rd2 {[%emt 0:00:06]} 36. Rd6 {[%emt 0:00:02]} f6 {[%emt 0:00:21]} 37. h4 {[%emt 0:02:26]} Kg6 {[%emt 0:00:46]} 38. Kh2 {[%emt 0:00:30]} Kf5 {[%emt 0:01:08]} 39. Kg3 {[%emt 0:00:09]} Rd4 {[%emt 0:02:14]} 40. Rd8 {[%emt 0:00:37]} Rd3+ {[%emt 0:06:09]} 41. Kf2 {[%emt 0:00:01]} Kf4 {[%emt 0:04:10]} 42. Ke2 {[%emt 0:00:05]} Re3+ {[%emt 0:00:32]} 43. Kf2 {[%emt 0:00:12]} Re5 {[%emt 0:00:27]} 44. g3+ {[%emt 0:02:10]} Ke4 {[%emt 0:01:16]} 45. Rd6 {[%emt 0:00:22]} Rf5+ {[%emt 0:03:03]} 46. Ke2 {[%emt 0:00:10]} h5 {[%emt 0:00:23]} 47. Rd8 {[%emt 0:00:37]} Kd4 {[%emt 0:00:49]} 48. Rd6 {[%emt 0:00:56]} Re5+ {[%emt 0:01:19]} 49. Kd2 {[%emt 0:00:06]} f5 {[%emt 0:00:51]} 50. Rh6 {[%emt 0:00:15]} f4 {[%emt 0:00:24]} 51. gxf4 {[%emt 0:00:03]} Rf5 {[%emt 0:00:07]} 52. Ke2 {[%emt 0:01:24]} Ke4 {[%emt 0:00:07]} 53. Re6+ {[%emt 0:00:39]} Kxf4 {[%emt 0:00:05]} 54. Rg6 {[%emt 0:00:02]} Ke4 {[%emt 0:00:53]} 55. Re6+ {[%emt 0:00:13]} Kd4 {[%emt 0:00:27]} 56. Rh6 {[%emt 0:00:09]} Re5+ {[%emt 0:00:44]} 57. Kf3 {[%emt 0:00:05]} Rf5+ {[%emt 0:00:35]} 58. Ke2 {[%emt 0:00:01]} Ke4 {[%emt 0:02:01]} 59. Re6+ {[%emt 0:00:01]} Re5 {[%emt 0:00:21]} 60. Rf6 {[%emt 0:00:26]} Kd4+ {[%emt 0:00:30]} 61. Kf3 {[%emt 0:02:19]} Re4 {[%emt 0:00:17]} 62. Ra6 {[%emt 0:00:53]} Ke5 {[%emt 0:00:30]} 63. Kg3 {[%emt 0:00:34]} Rg4+ {[%emt 0:00:07]} 64. Kh3 {[%emt 0:00:04]} Rf4 {[%emt 0:00:04]} 65. Kg3 {[%emt 0:00:43]} Rf5 {[%emt 0:00:14]} 66. Ra5 {[%emt 0:01:07]} Ke4 {[%emt 0:01:20]} 67. Ra8 {[%emt 0:00:30]} d4 {[%emt 0:00:11]} 0-1

[Event "30th Abu Dhabi Festival A-Open 2024"]
[Site "Abu Dhabi"]
[Date "2024.08.19"]
[Round "4.9"]
[White "Zhou, Yichen"]
[Black "Kuandykuly, Danis"]
[Result "1/2-1/2"]
[ECO "D38"]
[WhiteElo "2023"]
[BlackElo "2224"]
[Annotator "RC"]
[PlyCount "80"]
[EventDate "2024.08.15"]
[EventType "swiss"]
[EventCountry "UAE"]
[SourceTitle "playchess.com"]
[Source "ChessBase"]
[SourceQuality "1"]
[TimeControl "5400+30"]

1. d4 {[%emt 0:00:02]} Nf6 {[%emt 0:00:08]} 2. c4 {[%emt 0:00:03]} e6 {[%emt 0:00:07]} 3. Nf3 {[%emt 0:00:04]} d5 {[%emt 0:00:08]} 4. Nc3 {[%emt 0:00:05]} Bb4 {[%emt 0:00:06]} 5. cxd5 {[%emt 0:00:07]} exd5 {[%emt 0:01:10]} 6. Bg5 {[%emt 0:00:05]} h6 {[%emt 0:02:43]} 7. Bxf6 {[%emt 0:03:27]} Qxf6 {[%emt 0:00:58]} 8. Qb3 {[%emt 0:00:16]} Bxc3+ {[%emt 0:03:47]} 9. bxc3 {[%emt 0:01:30]} c6 {[%emt 0:01:58]} 10. e3 {[%emt 0:00:31]} O-O {[%emt 0:00:39]} 11. Bd3 {[%emt 0:00:24]} Nd7 {[%emt 0:01:11]} 12. O-O {[%emt 0:00:16]} Qe7 {[%emt 0:01:54]} 13. c4 {[%emt 0:02:53]} dxc4 {[%emt 0:02:03]} 14. Bxc4 {[%emt 0:02:28]} Nb6 {[%emt 0:06:02]} 15. Bd3 {[%emt 0:00:50]} Be6 {[%emt 0:02:21]} 16. Qc2 {[%emt 0:00:12]} Rac8 {[%emt 0:00:11]} 17. Rfc1 {[%emt 0:12:12]} c5 {[%emt 0:06:17]} 18. dxc5 {[%emt 0:00:05]} Nd7 {[%emt 0:00:07]} 19. Qa4 {[%emt 0:00:23]} Nxc5 {[%emt 0:01:05]} 20. Qa3 {[%emt 0:00:39]} b6 {[%emt 0:00:43]} 21. Nd4 {[%emt 0:05:38]} Bd5 {[%emt 0:02:41]} 22. Bf1 {[%emt 0:01:48]} Rfd8 {[%emt 0:11:04]} 23. Rd1 {[%emt 0:04:47]} Qf6 {[%emt 0:08:46]} 24. Rac1 {[%emt 0:24:16]} a6 {[%emt 0:04:43]} 25. Rc2 {[%emt 0:12:59]} Be4 {[%emt 0:10:26]} 26. Rc3 {[%emt 0:05:49]} Bb7 {[%emt 0:00:55]} 27. Rdc1 {[%emt 0:05:27]} Ne4 {[%emt 0:05:36]} 28. R3c2 {[%emt 0:00:11]} Rxc2 {[%emt 0:01:17]} 29. Rxc2 {[%emt 0:00:02]} Ng5 {[%emt 0:01:00]} 30. f3 {[%emt 0:07:55]} h5 {[%emt 0:14:35]} 31. Rc7 {[%emt 0:07:55]} Rxd4 {[%emt 0:04:55]} 32. Rxb7 {[%emt 0:00:03]} Rd2 {[%emt 0:00:44]} 33. Qc1 {[%emt 0:02:04]} Rb2 {[%emt 0:03:31]} 34. Qc7 {[%emt 0:01:24]} Qg6 {[%emt 0:01:12]} 35. Qg3 {[%emt 0:00:36]} Rb1 {[%emt 0:01:36]} 36. h4 {[%emt 0:00:30]} Qd3 {[%emt 0:01:19]} 37. Qxg5 {[%emt 0:00:29]} Qxf1+ {[%emt 0:00:30]} 38. Kh2 {[%emt 0:00:02]} Qh1+ {[%emt 0:00:15]} 39. Kg3 {[%emt 0:00:00]} Qe1+ {[%emt 0:00:01]} 40. Kh2 {[%emt 0:00:21]} g6 1/2-1/2

[Event "30th Abu Dhabi Festival A-Open 2024"]
[Site "Abu Dhabi"]
[Date "2024.08.19"]
[Round "4.10"]
[White "Fadi, Marko"]
[Black "Poormosavi, Seyed Kanan"]
[Result "1/2-1/2"]
[ECO "B30"]
[WhiteElo "2221"]
[BlackElo "2034"]
[Annotator "RC"]
[PlyCount "53"]
[EventDate "2024.08.15"]
[EventType "swiss"]
[EventCountry "UAE"]
[SourceTitle "playchess.com"]
[Source "ChessBase"]
[SourceQuality "1"]
[TimeControl "5400+30"]

1. e4 {[%emt 0:05:14]} c5 {[%emt 0:01:08]} 2. Nc3 {[%emt 0:02:05]} e6 {[%emt 0:00:06]} 3. Nf3 {[%emt 0:01:44]} Nc6 {[%emt 0:00:07]} 4. Bb5 {[%emt 0:01:53]} Nd4 {[%emt 0:00:10]} 5. Bc4 {[%emt 0:02:37]} a6 {[%emt 0:02:04]} 6. Nxd4 {[%emt 0:03:00]} cxd4 {[%emt 0:00:02]} 7. Ne2 {[%emt 0:00:02]} b5 {[%emt 0:01:04]} 8. Bb3 {[%emt 0:01:04]} Bc5 {[%emt 0:08:12]} 9. d3 {[%emt 0:02:29]} Ne7 {[%emt 0:00:14]} 10. c3 {[%emt 0:05:47]} Nc6 {[%emt 0:03:42]} 11. O-O {[%emt 0:02:06]} O-O {[%emt 0:03:31]} 12. Bd2 {[%emt 0:03:07]} Bb7 {[%emt 0:06:08]} 13. Rc1 {[%emt 0:01:13]} Qb6 {[%emt 0:01:29]} 14. Kh1 {[%emt 0:14:57]} f5 {[%emt 0:17:21]} 15. exf5 {[%emt 0:15:03]} Rxf5 {[%emt 0:02:32]} 16. Ng3 {[%emt 0:00:13]} Rff8 {[%emt 0:10:40]} 17. Ne4 {[%emt 0:04:55]} dxc3 {[%emt 0:03:00]} 18. bxc3 {[%emt 0:00:47]} Ba3 {[%emt 0:03:53]} 19. Rb1 {[%emt 0:02:30]} Ne5 {[%emt 0:06:23]} 20. Qe2 {[%emt 0:00:22]} Qc6 {[%emt 0:00:29]} 21. f3 {[%emt 0:00:11]} Rac8 {[%emt 0:04:36]} 22. Rbe1 {[%emt 0:04:23]} Kh8 {[%emt 0:02:43]} 23. Ng5 {[%emt 0:10:44]} Nf7 {[%emt 0:03:48]} 24. Ne4 {[%emt 0:02:01]} Nd6 {[%emt 0:02:57]} 25. Nf2 {[%emt 0:04:31]} Nf5 {[%emt 0:16:41]} 26. Ng4 Bd6 {[%emt 0:00:30]} 27. d4 {[%emt 0:11:02]} 1/2-1/2

[Event "30th Abu Dhabi Festival A-Open 2024"]
[Site "Abu Dhabi"]
[Date "2024.08.19"]
[Round "4.11"]
[White "Ashwin Sairam"]
[Black "Talgatov, Nazar"]
[Result "0-1"]
[ECO "C45"]
[WhiteElo "1997"]
[BlackElo "2171"]
[Annotator "RC"]
[PlyCount "74"]
[EventDate "2024.08.15"]
[EventType "swiss"]
[EventCountry "UAE"]
[SourceTitle "playchess.com"]
[Source "ChessBase"]
[SourceQuality "1"]
[TimeControl "5400+30"]

1. e4 {[%emt 0:00:04]} e5 {[%emt 0:00:43]} 2. Nf3 {[%emt 0:00:08]} Nc6 {[%emt 0:00:32]} 3. d4 {[%emt 0:00:13]} exd4 {[%emt 0:01:05]} 4. Nxd4 {[%emt 0:00:08]} Nf6 {[%emt 0:00:55]} 5. Nxc6 {[%emt 0:00:08]} bxc6 {[%emt 0:00:05]} 6. e5 {[%emt 0:00:06]} Qe7 {[%emt 0:00:38]} 7. Qe2 {[%emt 0:00:05]} Nd5 {[%emt 0:00:36]} 8. h4 {[%emt 0:00:06]} a5 {[%emt 0:06:33]} 9. c4 {[%emt 0:07:58]} Ba6 {[%emt 0:01:46]} 10. g3 {[%emt 0:02:39]} f6 {[%emt 0:04:50]} 11. exf6 {[%emt 0:16:07]} Nxf6 {[%emt 0:01:06]} 12. Be3 {[%emt 0:08:53]} d5 {[%emt 0:02:32]} 13. Nd2 {[%emt 0:13:19]} O-O-O {[%emt 0:12:09]} 14. O-O-O {[%emt 0:00:32]} Kb8 {[%emt 0:02:45]} 15. Qd3 {[%emt 0:02:38]} a4 {[%emt 0:18:33]} 16. Qc2 {[%emt 0:07:57]} Qb4 {[%emt 0:02:10]} 17. a3 {[%emt 0:03:26]} Qa5 {[%emt 0:00:36]} 18. Bd4 {[%emt 0:00:07]} Bb7 {[%emt 0:05:40]} 19. c5 {[%emt 0:12:13]} Be7 {[%emt 0:05:26]} 20. Bh3 {[%emt 0:06:32]} Bc8 {[%emt 0:04:11]} 21. b4 {[%emt 0:06:08]} axb3 {[%emt 0:01:32]} 22. Nxb3 {[%emt 0:00:07]} Qa4 {[%emt 0:04:33]} 23. Bb2 {[%emt 0:02:44]} Bxh3 {[%emt 0:01:20]} 24. Rxh3 {[%emt 0:00:21]} Ne4 {[%emt 0:02:27]} 25. Rd4 {[%emt 0:02:10]} Qa6 {[%emt 0:00:19]} 26. Rh1 {[%emt 0:00:07]} Rhf8 {[%emt 0:00:26]} 27. Nd2 {[%emt 0:05:49]} Nxc5 {[%emt 0:04:04]} 28. Re1 {[%emt 0:00:35]} Bd6 {[%emt 0:00:41]} 29. f3 {[%emt 0:00:45]} Kc8 {[%emt 0:01:26]} 30. f4 {[%emt 0:01:36]} Rde8 {[%emt 0:01:55]} 31. Rxe8+ {[%emt 0:00:15]} Rxe8 {[%emt 0:00:00]} 32. Qxh7 {[%emt 0:00:07]} Re1+ {[%emt 0:01:45]} 33. Kc2 {[%emt 0:00:06]} Kb7 {[%emt 0:04:02]} 34. Qg8 {[%emt 0:01:23]} Ka7 {[%emt 0:00:34]} 35. h5 {[%emt 0:01:18]} Qe2 {[%emt 0:00:49]} 36. Bc3 {[%emt 0:01:03]} Qd1+ {[%emt 0:00:34]} 37. Kb2 {[%emt 0:00:04]} Qa1+ {[%emt 0:00:19]} 0-1